bitfinex-derivatives/quotes_SOLF0:USTF0_20250823
["timestamp","ask_amount","ask_price","bid_price","bid_amount"]
[1755929202296,5.95436618,207.77,207.71,4.56229846]
[1755929202495,5.95436618,207.77,207.68,2.76]
[1755929202698,5.95436618,207.84,207.51,24.105]
[1755929202699,5.95436618,207.69,207.51,24.105]
[1755929202899,5.95436618,207.69,207.58,4.8194]
[1755929203100,5.95436618,207.69,207.59,14.04406174]
[1755929203302,5.95436618,207.69,207.6,11.28406174]
[1755929203504,5.95436618,207.69,207.61,9.26579103]
[1755929203803,5.95436618,207.69,207.62,4.56830321]
[1755929204002,5.95436618,207.69,207.63,4.56830321]
[1755929204198,5.95436618,207.69,207.64,4.56830321]
[1755929204403,5.95436618,207.69,207.59,2.76]
[1755929204604,5.95436618,207.69,207.6,11.275902]
[1755929204802,5.95436618,207.69,207.61,9.25909634]
[1755929205007,4.8168,207.7,207.62,4.56499625]
[1755929205196,4.8168,207.7,207.63,4.56499625]
[1755929205397,4.8163,207.72,207.59,2.76]
[1755929205706,4.8163,207.72,207.61,2.76]
[1755929205904,4.8163,207.72,207.62,4.56363415]
[1755929206100,4.8163,207.72,207.61,2.76]
[1755929206101,4.8163,207.72,207.63,4.56363415]
[1755929206407,4.8163,207.72,207.61,2.76]
[1755929206708,4.8163,207.72,207.62,4.56192105]
[1755929206897,4.8163,207.72,207.63,4.56192105]
[1755929207100,4.8163,207.72,207.64,4.56192105]
[1755929207299,4.8163,207.72,207.61,2.76]
[1755929207502,4.8163,207.72,207.62,4.56146943]
[1755929207701,4.8163,207.72,207.63,4.56146943]
[1755929207999,4.8163,207.72,207.64,4.56146943]
[1755929208195,4.8163,207.72,207.61,2.76]
[1755929208400,4.8163,207.72,207.62,4.5618805]
[1755929208601,4.8163,207.72,207.63,4.5618805]
[1755929208796,4.8163,207.72,207.61,2.76]
[1755929209001,4.8163,207.72,207.62,4.56342534]
[1755929209307,4.8163,207.72,207.63,7.32342534]
[1755929209500,4.8163,207.72,207.64,4.56342534]
[1755929209703,4.8163,207.72,207.65,4.5628823]
[1755929209902,4.8163,207.72,207.63,2.76]
[1755929210100,4.8163,207.72,207.64,4.56272643]
[1755929210304,4.8163,207.72,207.65,4.5628794]
[1755929210608,4.8163,207.72,207.63,2.76]
[1755929210810,4.8163,207.72,207.64,4.56347357]
[1755929211100,4.8158,207.75,207.66,2.76]
[1755929211304,123.94,207.78,207.68,2.76]
[1755929211708,123.94,207.78,207.69,4.55898839]
[1755929211908,123.94,207.78,207.68,2.76]
[1755929212301,24.0758,207.77,207.62,2.76]
[1755929212506,24.0758,207.77,207.63,4.56105801]
[1755929212806,5.95436618,207.74,207.64,4.56105801]
[1755929213007,5.95436618,207.74,207.62,2.76]
[1755929213205,5.95436618,207.74,207.63,4.56352312]
[1755929213404,5.95436618,207.74,207.64,4.56352312]
[1755929213606,4.8167,207.71,207.65,4.56352312]
[1755929213807,4.8167,207.71,207.62,2.76]
[1755929214103,4.8167,207.71,207.63,9.26865594]
[1755929214307,4.8167,207.71,207.64,4.56477376]
[1755929214504,4.8167,207.71,207.65,4.56477376]
[1755929214709,4.8167,207.71,207.62,2.76]
[1755929214905,4.8167,207.71,207.63,9.22951192]
[1755929215112,4.8167,207.71,207.64,7.28526048]
[1755929215313,4.8167,207.71,207.65,4.52526048]
[1755929215506,4.816,207.74,207.64,2.76]
[1755929215707,4.816,207.74,207.66,2.76]
[1755929215908,129.89436618,207.78,207.67,4.52435253]
[1755929216107,4.8156,207.76,207.68,4.52435253]
[1755929216308,4.8156,207.76,207.66,2.76]
[1755929216508,4.8156,207.76,207.67,4.5249712]
[1755929216709,4.8156,207.76,207.68,4.5249712]
[1755929216907,4.8156,207.76,207.66,2.76]
[1755929217104,4.8156,207.76,207.67,4.5249712]
[1755929217309,4.8156,207.76,207.68,4.5249712]
[1755929217611,4.8156,207.76,207.66,2.76]
[1755929217811,4.8156,207.76,207.67,4.52595317]
[1755929218011,4.8156,207.76,207.68,4.52595317]
[1755929218214,4.8156,207.76,207.66,2.76]
[1755929218419,4.8156,207.76,207.67,4.52545743]
[1755929218712,4.8156,207.76,207.66,2.76]
[1755929218909,4.8156,207.76,207.67,4.52703606]
[1755929219114,4.8156,207.76,207.68,4.52703606]
[1755929219315,129.89436618,207.78,207.68,2.76]
[1755929220314,4.8156,207.75,207.68,2.76]
[1755929220510,129.89436618,207.78,207.68,2.76]
[1755929220911,4.8154,207.76,207.69,4.52833041]
[1755929221111,129.89436618,207.78,207.68,2.76]
[1755929222006,4.8162,207.73,207.68,2.76]
[1755929222813,4.817,207.69,207.59,2.76]
[1755929223405,4.817,207.69,207.6,4.55263778]
[1755929223716,4.817,207.69,207.61,4.55263778]
[1755929223918,4.817,207.69,207.62,2.65]
[1755929224118,5.95436618,207.75,207.62,2.65]
[1755929224719,4.8167,207.71,207.62,2.65]
[1755929225416,4.8161,207.73,207.62,2.65]
[1755929226020,4.8161,207.73,207.64,2.65]
[1755929226209,4.8161,207.73,207.65,4.46454127]
[1755929226413,24.077,207.76,207.64,2.65]
[1755929226915,4.8166,207.71,207.64,2.65]
[1755929227117,4.8166,207.71,207.65,4.46585022]
[1755929227318,4.8166,207.71,207.64,2.65]
[1755929227716,5.95436618,207.73,207.64,2.65]
[1755929228320,4.8172,207.69,207.64,2.65]
[1755929228821,4.8166,207.71,207.64,2.65]
[1755929229127,30.03396618,207.74,207.64,2.65]
[1755929230524,4.8169,207.7,207.64,2.65]
[1755929230729,24.077,207.76,207.64,2.65]
[1755929231120,24.0781,207.75,207.64,2.65]
[1755929231823,4.8167,207.71,207.64,2.65]
[1755929232017,5.95436618,207.73,207.64,2.65]
[1755929233028,4.8169,207.7,207.64,2.65]
[1755929238731,4.8162,207.73,207.64,2.65]
[1755929238931,5.95436618,207.74,207.64,2.65]
[1755929239341,4.8164,207.72,207.64,2.65]
[1755929240436,5.95436618,207.71,207.63,18.21]
[1755929241128,5.95436618,207.67,207.63,18.21]
[1755929241325,5.95436618,207.68,207.63,18.21]
[1755929241526,4.8178,207.66,207.63,18.21]
[1755929242637,4.8172,207.68,207.63,18.21]
[1755929242834,5.95436618,207.69,207.63,18.21]
[1755929243339,4.8177,207.67,207.63,18.21]
[1755929243841,5.95436618,207.69,207.63,18.21]
[1755929245537,4.8179,207.66,207.63,18.21]
[1755929245934,5.95436618,207.7,207.64,4.5882474]
[1755929246135,5.95436618,207.7,207.63,18.21]
[1755929246332,5.95436618,207.7,207.64,4.58819609]
[1755929246536,5.95436618,207.7,207.63,18.21]
[1755929246734,4.8173,207.68,207.64,4.58937082]
[1755929246933,4.8173,207.68,207.64,2.65]
[1755929247135,5.95436618,207.7,207.65,7.23929273]
[1755929247338,5.95436618,207.7,207.65,2.65]
[1755929248540,10.77116618,207.7,207.65,2.65]
[1755929249236,4.8168,207.7,207.55,24.93916038]
[1755929249441,4.8163,207.72,207.66,2.65]
[1755929250541,4.8158,207.75,207.66,2.65]
[1755929250845,4.8158,207.75,207.68,2.65]
[1755929251045,4.8158,207.75,207.69,4.59025143]
[1755929251248,4.8158,207.75,207.68,2.65]
[1755929251447,4.8158,207.75,207.69,4.58935435]
[1755929251747,4.8158,207.75,207.7,25.46935435]
[1755929251942,4.8158,207.75,207.7,18.23]
[1755929252148,4.8158,207.75,207.7,20.88]
[1755929253643,4.8161,207.73,207.7,18.23]
[1755929255445,4.8165,207.71,207.7,18.23]
[1755929256444,4.8173,207.68,207.62,2.55]
[1755929256646,4.8173,207.68,207.64,2.55]
[1755929259945,4.8177,207.67,207.64,2.55]
[1755929261750,4.8177,207.67,207.61,2.55]
[1755929261947,4.8177,207.67,207.63,2.55]
[1755929264245,4.8177,207.67,207.64,7.27502816]
[1755929264552,128.597,207.7,207.56,2.55]
[1755929264746,5.95436618,207.74,207.57,11.35368187]
[1755929264956,123.72,207.72,207.59,2.55]
[1755929265255,323.88,207.79,207.61,2.55]
[1755929265553,123.72,207.78,207.63,2.55]
[1755929265853,123.72,207.78,207.65,2.55]
[1755929266052,123.72,207.78,207.67,2.55]
[1755929266252,123.72,207.78,207.69,2.55]
[1755929266447,123.72,207.78,207.7,4.72566658]
[1755929266649,4.8158,207.75,207.71,4.72587395]
[1755929266853,4.8158,207.75,207.69,2.55]
[1755929267153,4.8158,207.75,207.71,2.55]
[1755929267754,4.8158,207.75,207.72,5.28468641]
[1755929267954,4.8158,207.75,207.71,2.55]
[1755929268153,4.8158,207.75,207.72,5.28468641]
[1755929268452,4.8158,207.75,207.65,2.55]
[1755929268654,4.8158,207.75,207.67,2.55]
[1755929268856,4.8158,207.75,207.69,2.55]
[1755929269048,4.8158,207.75,207.71,2.55]
[1755929270953,5.95436618,207.72,207.62,2.55]
[1755929271156,123.68,207.71,207.63,9.68375137]
[1755929271363,123.68,207.71,207.64,4.72566653]
[1755929271560,123.68,207.71,207.65,4.72566653]
[1755929271756,123.68,207.71,207.62,2.55]
[1755929271957,123.68,207.71,207.63,4.67445457]
[1755929272158,4.8171,207.69,207.64,4.67445457]
[1755929272357,4.8171,207.69,207.65,4.67445457]
[1755929272660,4.8175,207.68,207.62,2.55]
[1755929272860,4.8175,207.68,207.63,7.22423061]
[1755929273060,4.8175,207.68,207.64,4.67423061]
[1755929273260,4.8175,207.68,207.65,4.67423061]
[1755929273465,4.8175,207.68,207.63,2.55]
[1755929273756,147.7632,207.71,207.64,4.67418749]
[1755929273957,147.7632,207.71,207.63,2.55]
[1755929274366,4.8178,207.66,207.64,4.67729101]
[1755929274565,5.95436618,207.68,207.59,2.55]
[1755929274866,5.95436618,207.68,207.6,4.67759679]
[1755929275065,5.95436618,207.68,207.61,4.67759679]
[1755929275265,5.95436618,207.68,207.59,2.55]
[1755929275467,5.95436618,207.68,207.6,4.67729962]
[1755929275664,4.8187,207.63,207.59,2.55]
[1755929275865,4.8187,207.63,207.6,4.67729962]
[1755929276055,4.8187,207.63,207.61,4.67729962]
[1755929276255,129.57436618,207.64,207.55,2.55]
[1755929276256,4.8195,207.59,207.55,2.55]
[1755929276464,4.8195,207.59,207.56,4.67772802]
[1755929276665,4.8195,207.59,207.57,4.67772802]
[1755929276871,4.8195,207.59,207.58,4.67772802]
[1755929277056,4.8195,207.59,207.55,2.55]
[1755929277257,4.8195,207.59,207.56,4.67592927]
[1755929277562,4.8195,207.59,207.57,4.67592927]
[1755929277768,4.8195,207.59,207.55,2.55]
[1755929277962,4.8195,207.59,207.56,4.67592927]
[1755929278163,4.8195,207.59,207.57,4.67592927]
[1755929278368,4.8199,207.57,207.52,2.55]
[1755929278568,4.8199,207.57,207.53,4.67445138]
[1755929278766,4.8199,207.57,207.54,4.67445138]
[1755929278966,4.8199,207.57,207.55,4.67445138]
[1755929279169,4.8199,207.57,207.56,4.67445138]
[1755929279671,4.8199,207.57,207.52,2.55]
[1755929279871,4.8199,207.57,207.53,4.67302921]
[1755929280064,4.8199,207.57,207.54,4.67302921]
[1755929280368,4.8199,207.57,207.55,4.67302921]
[1755929280565,4.8199,207.57,207.52,2.55]
[1755929280764,4.8199,207.57,207.53,4.67282374]
[1755929280970,4.8199,207.57,207.54,4.67282374]
[1755929281265,4.8199,207.57,207.55,4.67282374]
[1755929281467,4.8199,207.57,207.52,2.55]
[1755929281768,4.8199,207.57,207.53,4.67082293]
[1755929281965,4.8199,207.57,207.54,4.67082293]
[1755929282164,123.6,207.58,207.44,2.55]
[1755929282165,24.1006,207.56,207.44,2.55]
[1755929282360,5.95436618,207.55,207.45,4.67004745]
[1755929282668,5.95436618,207.55,207.46,4.67004745]
[1755929282863,30.05496618,207.56,207.47,4.67004745]
[1755929283063,30.05496618,207.56,207.44,2.55]
[1755929283064,30.05496618,207.56,207.48,4.67004745]
[1755929283265,30.05496618,207.56,207.44,2.81054]
[1755929283456,30.05496618,207.56,207.45,4.6663275]
[1755929283658,30.05496618,207.56,207.46,4.6663275]
[1755929283865,30.05496618,207.56,207.47,4.6663275]
[1755929284062,9.6323,207.73,207.49,2.76]
[1755929284257,153.62806618,207.62,207.5,4.66593361]
[1755929284459,153.62806618,207.62,207.51,4.66593361]
[1755929284662,5.95436618,207.58,207.49,2.76]
[1755929284862,123.6,207.57,207.49,2.76]
[1755929285669,123.6,207.57,207.44,0.26054]
[1755929285869,123.6,207.57,207.45,7.42176696]
[1755929286067,123.6,207.57,207.46,4.66176696]
[1755929286268,123.6,207.57,207.45,2.76]
[1755929286469,123.6,207.57,207.46,4.65902292]
[1755929286770,123.6,207.57,207.45,2.76]
[1755929286964,123.6,207.57,207.46,4.65902292]
[1755929287170,123.6,207.57,207.45,2.76]
[1755929287665,4.8207,207.53,207.45,2.76]
[1755929288971,4.8212,207.51,207.45,2.76]
[1755929289567,123.58,207.51,207.44,0.26054]
[1755929289964,123.58,207.52,207.44,3.02054]
[1755929292074,4.8215,207.5,207.44,3.02054]
[1755929293473,123.58,207.52,207.44,3.02054]
[1755929294771,128.4012,207.52,207.44,3.02054]
[1755929294971,123.56,207.53,207.44,3.02054]
[1755929295276,4.8214,207.5,207.44,3.02054]
[1755929296470,24.0939,207.62,207.44,3.02054]
[1755929296471,323.92,207.63,207.44,3.02054]
[1755929296670,5.95436618,207.68,207.48,2.76]
[1755929296876,5.95436618,207.72,207.52,2.76]
[1755929297176,5.95436618,207.74,207.55,5.95436618]
[1755929297378,5.95436618,207.75,207.59,5.95436618]
[1755929297574,123.54,207.74,207.6,2.76]
[1755929297768,4.8163,207.72,207.6,2.76]
[1755929297974,330.03436618,207.79,207.6,2.76]
[1755929298175,4.8161,207.73,207.61,4.8187]
[1755929298473,4.8161,207.73,207.62,2.76]
[1755929299071,4.8166,207.71,207.62,2.76]
[1755929300776,4.816,207.74,207.62,2.76]
[1755929301074,30.02756618,207.8,207.62,8.71436618]
[1755929301276,123.5,207.78,207.63,2.76]
[1755929301776,4.8152,207.77,207.63,2.76]
[1755929302977,4.8152,207.77,207.65,2.76]
[1755929304278,4.8152,207.77,207.67,2.76]
[1755929305177,123.46,207.78,207.67,2.76]
[1755929305681,128.275,207.78,207.67,2.76]
[1755929306582,5.95436618,207.89,207.71,2.76]
[1755929306880,147.4832,207.88,207.71,2.76]
[1755929307280,4.8134,207.85,207.72,4.8162]
[1755929307478,4.8134,207.85,207.73,2.76]
[1755929314090,4.8134,207.85,207.74,4.8158]
[1755929314390,4.8134,207.85,207.75,2.61]
[1755929316494,4.8134,207.85,207.76,4.8153]
[1755929316687,4.8128,207.88,207.77,2.61]
[1755929316989,123.3,207.92,207.79,4.8146]
[1755929317193,4.8118,207.92,207.8,2.61]
[1755929317393,128.0918,207.92,207.8,2.61]
[1755929317799,128.0918,207.92,207.81,4.8141]
[1755929318496,4.8118,207.92,207.81,4.8141]
[1755929320194,129.21436618,207.93,207.74,24.0789]
[1755929320397,129.21436618,207.93,207.76,8.56436618]
[1755929320602,129.21436618,207.93,207.77,2.61]
[1755929320803,4.8118,207.92,207.81,4.8142]
[1755929321002,4.8118,207.92,207.82,2.61]
[1755929324504,4.8121,207.9,207.82,2.61]
[1755929326410,4.8121,207.9,207.78,7.4247]
[1755929327106,4.8121,207.9,207.79,2.61]
[1755929327303,4.8121,207.9,207.8,4.8144]
[1755929327903,4.8121,207.9,207.79,2.61]
[1755929328205,4.8127,207.88,207.79,2.61]
[1755929328504,147.22,207.91,207.79,2.61]
[1755929329507,4.8131,207.86,207.75,7.4254]
[1755929330807,4.8136,207.84,207.75,2.61]
[1755929332305,4.8139,207.83,207.75,2.61]
[1755929333809,5.95436618,207.85,207.74,2.61]
[1755929334510,4.8139,207.83,207.74,2.61]
[1755929334709,5.95436618,207.85,207.74,2.61]
[1755929335512,4.8142,207.82,207.74,2.61]
[1755929336011,24.0678,207.84,207.73,0.26214]
[1755929336510,4.8149,207.79,207.73,0.26214]
[1755929339009,4.8151,207.78,207.73,0.26214]
[1755929339807,4.8145,207.8,207.73,0.26214]
[1755929340214,30.01466618,207.91,207.74,2.61]
[1755929340607,5.95436618,207.91,207.74,2.61]
[1755929340802,347.6408,207.9,207.74,2.61]
[1755929341307,323.58,207.9,207.76,5.95436618]
[1755929341506,323.58,207.9,207.77,2.61]
[1755929341712,5.95436618,207.91,207.77,2.61]
[1755929342513,4.8125,207.89,207.8,4.8144]
[1755929342813,4.8125,207.89,207.8,2.61]
[1755929344216,4.8128,207.88,207.8,2.61]
[1755929344513,5.95436618,207.91,207.73,24.34224]
[1755929344714,5.95436618,207.91,207.74,2.71]
[1755929345214,4.8131,207.86,207.74,2.71]
[1755929345613,5.95436618,207.87,207.74,2.71]
[1755929346513,4.8142,207.82,207.74,2.71]
[1755929346916,5.95436618,207.87,207.74,2.71]
[1755929347110,5.95436618,207.88,207.74,2.71]
[1755929347310,4.813,207.87,207.74,2.71]
[1755929347510,4.813,207.87,207.75,4.8154]
[1755929347814,4.813,207.87,207.74,2.71]
[1755929348009,5.95436618,207.88,207.74,2.71]
[1755929348214,5.95436618,207.88,207.77,7.5249]
[1755929349517,4.8128,207.87,207.77,7.5249]
[1755929349916,5.95436618,207.88,207.77,2.71]
[1755929351012,5.95436618,207.88,207.74,4.8156]
[1755929351517,5.95436618,207.88,207.73,2.97214]
[1755929351911,5.95436618,207.84,207.73,2.97214]
[1755929353022,10.76786618,207.84,207.73,2.97214]
[1755929354019,4.814,207.83,207.73,2.97214]
[1755929354618,4.8142,207.82,207.73,2.97214]
[1755929354917,4.8142,207.82,207.73,2.71]
[1755929355218,4.8145,207.8,207.73,2.71]
[1755929355416,24.0677,207.84,207.69,2.71]
[1755929355719,5.95436618,207.81,207.69,2.71]
[1755929356123,30.02586618,207.81,207.69,2.71]
[1755929356622,4.8155,207.76,207.69,2.71]
[1755929359826,4.8158,207.75,207.69,2.71]
[1755929363126,4.8151,207.77,207.69,2.71]
[1755929363322,24.0727,207.8,207.69,2.71]
[1755929364428,4.8159,207.74,207.69,2.71]
[1755929365129,4.8159,207.74,207.7,2.71]
[1755929365424,4.8153,207.76,207.7,2.71]
[1755929365829,5.95436618,207.81,207.7,2.71]
[1755929367532,4.8151,207.78,207.7,2.71]
[1755929368226,4.8153,207.77,207.66,4.8176]
[1755929368431,24.0724,207.8,207.65,2.71]
[1755929369230,4.8156,207.75,207.65,7.5279]
[1755929369428,5.95436618,207.77,207.65,2.71]
[1755929370032,4.816,207.74,207.65,2.71]
[1755929370334,5.95436618,207.77,207.65,2.71]
[1755929371228,4.8157,207.75,207.65,7.5279]
[1755929372027,4.8157,207.75,207.65,4.8179]
[1755929372228,4.8157,207.75,207.66,2.71]
[1755929372938,4.8163,207.72,207.66,2.71]
[1755929377737,4.8158,207.75,207.66,2.71]
[1755929378533,5.95436618,207.77,207.66,2.71]
[1755929379537,4.8162,207.73,207.66,2.71]
[1755929382034,5.95436618,207.83,207.66,2.71]
[1755929382236,30.01986618,207.86,207.66,3.19]
[1755929382429,30.01986618,207.86,207.66,2.71]
[1755929382633,4.8141,207.82,207.74,2.66]
[1755929382930,30.01656618,207.89,207.74,2.66]
[1755929383534,4.8134,207.85,207.76,4.8153]
[1755929383733,4.8134,207.85,207.77,2.66]
[1755929384334,24.063,207.88,207.77,2.66]
[1755929384540,24.0649,207.87,207.77,2.66]
[1755929385236,24.063,207.88,207.77,2.66]
[1755929385440,4.8139,207.83,207.77,2.66]
[1755929391341,24.0656,207.86,207.72,2.66]
[1755929391541,5.95436618,207.85,207.72,2.66]
[1755929392244,4.8146,207.8,207.72,2.66]
[1755929392841,4.8139,207.82,207.72,2.66]
[1755929393150,24.0631,207.88,207.74,2.66]
[1755929394547,4.8137,207.84,207.75,4.8155]
[1755929394845,4.8137,207.84,207.76,2.66]
[1755929397247,4.8137,207.84,207.76,7.4753]
[1755929401950,4.8137,207.84,207.77,2.66]
[1755929404052,4.8139,207.83,207.77,2.66]
[1755929405248,30.01656618,207.89,207.77,2.66]
[1755929405451,4.8133,207.85,207.77,2.66]
[1755929407052,24.0636,207.88,207.77,2.66]
[1755929408452,5.95436618,207.86,207.72,2.69]
[1755929408755,128.39436618,207.87,207.72,2.69]
[1755929410657,4.8137,207.83,207.72,2.69]
[1755929410854,5.95436618,207.83,207.65,2.69]
[1755929411356,5.95436618,207.79,207.65,2.69]
[1755929411758,4.8156,207.75,207.65,2.69]
[1755929412457,10.76996618,207.75,207.65,2.69]
[1755929412863,4.8156,207.75,207.65,2.69]
[1755929416361,4.816,207.73,207.65,2.69]
[1755929422063,5.95436618,207.8,207.65,2.69]
[1755929422367,24.0715,207.81,207.68,4.8171]
[1755929422565,24.0715,207.81,207.69,2.69]
[1755929423669,4.8153,207.77,207.69,2.69]
[1755929424578,4.8146,207.79,207.69,2.69]
[1755929427473,4.815,207.78,207.69,2.69]
[1755929434177,122.3,207.84,207.69,2.69]
[1755929434375,5.95436618,207.85,207.69,2.69]
[1755929435174,5.95436618,207.85,207.71,2.7]
[1755929435976,4.8139,207.83,207.73,4.8158]
[1755929436274,4.8139,207.83,207.74,2.7]
[1755929438374,5.95436618,207.81,207.65,2.7]
[1755929439178,4.8155,207.75,207.66,4.8176]
[1755929439377,24.072,207.8,207.67,2.7]
[1755929440581,4.8151,207.77,207.67,2.7]
[1755929440980,5.95436618,207.81,207.69,2.7]
[1755929441181,4.8148,207.78,207.69,2.7]
[1755929445180,4.8153,207.76,207.69,2.7]
[1755929447978,4.8159,207.74,207.67,2.7]
[1755929449085,5.95436618,207.86,207.67,2.7]
[1755929449580,4.8148,207.79,207.7,2.7]
[1755929449784,5.95436618,207.86,207.7,2.7]
[1755929451184,24.0674,207.84,207.67,2.7]
[1755929451484,24.0711,207.81,207.67,2.7]
[1755929451685,5.95436618,207.78,207.67,2.7]
[1755929451986,4.8157,207.75,207.67,2.7]
[1755929454280,4.8157,207.75,207.66,4.8174]
[1755929454485,5.95436618,207.74,207.64,0.28364]
[1755929455487,4.8165,207.71,207.64,0.28364]
[1755929456191,4.8169,207.7,207.64,0.28364]
[1755929457591,4.8175,207.67,207.64,0.28364]
[1755929460293,5.95436618,207.69,207.64,0.28364]
[1755929460787,146.1179,207.75,207.64,0.28364]
[1755929460994,5.95436618,207.68,207.64,0.28364]
[1755929461395,4.8178,207.65,207.6,0.58680808]
[1755929461594,5.95436618,207.64,207.6,0.58680808]
[1755929461992,4.8188,207.61,207.6,0.58680808]
[1755929464699,10.77266618,207.64,207.6,0.58680808]
[1755929465000,24.0917,207.63,207.46,2.6]
[1755929465195,5.95436618,207.59,207.46,2.6]
[1755929465395,5.95436618,207.55,207.46,2.6]
[1755929465992,4.8211,207.51,207.42,2.6]
[1755929466191,5.95436618,207.55,207.42,2.6]
[1755929466400,5.95436618,207.6,207.4,2.6]
[1755929466700,5.95436618,207.61,207.44,2.6]
[1755929467301,4.8195,207.58,207.48,2.6]
[1755929467697,5.95436618,207.57,207.4,2.6]
[1755929467903,4.8204,207.54,207.43,2.6]
[1755929468104,24.0999,207.56,207.43,2.6]
[1755929469502,4.8209,207.52,207.43,2.6]
[1755929473901,24.1022,207.54,207.43,2.6]
[1755929474202,4.8213,207.5,207.43,2.6]
[1755929474403,24.0999,207.56,207.43,2.6]
[1755929474600,4.8201,207.56,207.45,2.6]
[1755929475105,5.95436618,207.55,207.45,2.6]
[1755929475494,24.1022,207.54,207.38,0.83876643]
[1755929475696,24.1022,207.54,207.39,2.6]
[1755929476506,4.8213,207.51,207.39,2.6]
[1755929477112,24.1038,207.53,207.39,2.6]
[1755929477406,4.8218,207.48,207.39,2.6]
[1755929479307,4.8218,207.48,207.39,4.8237]
[1755929479508,4.8218,207.48,207.4,2.6]
[1755929481113,4.8222,207.47,207.4,2.6]
[1755929482213,4.8225,207.45,207.4,2.6]
[1755929482911,4.822,207.47,207.41,2.6]
[1755929484112,4.8216,207.49,207.41,2.6]
[1755929484309,5.95436618,207.55,207.41,2.6]
[1755929484516,5.95436618,207.67,207.47,2.6]
[1755929484907,24.0885,207.66,207.47,26.7092]
[1755929485111,24.0885,207.66,207.48,2.6]
[1755929485616,24.0895,207.65,207.48,2.6]
[1755929485916,5.95436618,207.63,207.48,2.6]
[1755929486314,24.0932,207.62,207.48,2.6]
[1755929486816,4.8195,207.58,207.48,2.6]
[1755929487020,5.95436618,207.59,207.48,2.6]
[1755929487315,4.8207,207.53,207.42,5.95436618]
[1755929487522,4.8207,207.53,207.43,2.6]
[1755929488322,5.95436618,207.51,207.38,3.43876643]
[1755929489524,24.108,207.49,207.38,0.83876643]
[1755929489821,24.108,207.49,207.33,2.6]
[1755929489822,5.95436618,207.47,207.33,2.6]
[1755929490017,5.95436618,207.47,207.33,3.43915072]
[1755929491326,4.823,207.43,207.33,3.43915072]
[1755929495830,5.95436618,207.43,207.33,3.43915072]
[1755929496031,5.95436618,207.43,207.33,2.6]
[1755929496324,4.8233,207.42,207.3,2.67]
[1755929497231,4.8237,207.4,207.3,2.67]
[1755929499132,4.8241,207.38,207.3,2.67]
[1755929500927,4.8246,207.36,207.29,0.83916084]
[1755929504634,4.8241,207.39,207.29,0.83916084]
[1755929504835,24.1188,207.4,207.29,0.83916084]
[1755929506536,4.8243,207.37,207.29,0.83916084]
[1755929511240,10.77816618,207.4,207.29,5.66516084]
[1755929511437,10.77816618,207.4,207.3,2.67]
[1755929511840,4.8241,207.39,207.3,2.67]
[1755929512245,5.95436618,207.4,207.3,2.67]
[1755929512535,4.8243,207.38,207.3,2.67]
[1755929514844,5.95436618,207.4,207.3,2.67]
[1755929515038,30.07276618,207.4,207.3,2.67]
[1755929515949,5.95436618,207.4,207.3,2.67]
[1755929516850,4.8245,207.37,207.3,2.67]
[1755929520954,4.8239,207.39,207.3,2.67]
[1755929523755,4.8243,207.38,207.3,2.67]
[1755929526854,4.8243,207.37,207.3,2.67]
[1755929527059,5.95436618,207.48,207.31,2.67]